fUST/lending_fUST_20250221
["ID","MTS","AMOUNT","RATE_DAILY","PERIOD"]
[353866321,1740101450391,-500.0,0.00014438,2]
[353866322,1740101450401,-697.58,0.00014438,2]
[353866323,1740101450413,-500.0,0.00014438,2]
[353866324,1740101450513,-500.0,0.00014438,2]
[353866325,1740101450524,-500.0,0.00014438,2]
[353866326,1740101450534,-500.0,0.00014438,2]
[353866327,1740101450543,-4476.95,0.00014438,2]
[353866328,1740101450553,-1855.42,0.00014438,2]
[353866329,1740101450562,-500.0,0.00014438,2]
[353866330,1740101450572,-1561.66,0.00014438,2]
[353866331,1740101450581,-500.0,0.00014438,2]
[353866332,1740101450590,-1412.3,0.00014438,2]
[353866333,1740101450601,-5338.73,0.00014438,2]
[353866334,1740101450610,-2773.95,0.00014438,2]
[353866335,1740101450620,-818.79,0.00014438,2]
[353866336,1740101450630,-2229.92,0.00014438,2]
[353866337,1740101450639,-500.0,0.00014438,2]
[353866338,1740101450648,-168.26106217,0.00014466,2]
[353866339,1740101450657,-2902.79,0.000145,2]
[353866340,1740101450667,-500.0,0.0001452,2]
[353866341,1740101450676,-500.0,0.0001452,2]
[353866342,1740101450685,-500.0,0.0001452,2]
[353866343,1740101450695,-532.73,0.0001452,2]
[353866344,1740101450704,-729.49,0.0001452,2]
[353866345,1740101450714,-500.0,0.0001452,2]
[353866346,1740101450723,-696.74,0.0001452,2]
[353866347,1740101450732,-500.0,0.0001452,2]
[353866348,1740101450741,-500.0,0.0001452,2]
[353866349,1740101450751,-518.52,0.0001452,2]
[353866350,1740101450760,-500.0,0.0001452,2]
[353866351,1740101450769,-500.0,0.0001452,2]
[353866352,1740101450779,-500.0,0.0001452,2]
[353866353,1740101450788,-500.0,0.0001452,2]
[353866354,1740101450797,-500.0,0.0001452,2]
[353866355,1740101450806,-500.0,0.0001452,2]
[353866356,1740101450815,-500.0,0.0001452,2]
[353866357,1740101450824,-844.81,0.0001452,2]
[353866358,1740101450834,-500.0,0.0001452,2]
[353866359,1740101450843,-669.95,0.0001452,2]
[353866360,1740101450853,-500.0,0.0001452,2]
[353866361,1740101450862,-581.18,0.0001452,2]
[353866362,1740101450872,-500.0,0.0001452,2]
[353866363,1740101450881,-500.0,0.0001452,2]
[353866364,1740101450892,-500.0,0.0001452,2]
[353866365,1740101450902,-500.0,0.0001452,2]
[353866366,1740101450911,-500.0,0.0001452,2]
[353866367,1740101450921,-604.66,0.0001452,2]
[353866368,1740101450931,-500.0,0.0001452,2]
[353866369,1740101450941,-500.0,0.0001452,2]
[353866370,1740101450950,-500.0,0.0001452,2]
[353866371,1740101450960,-861.01,0.0001452,2]
[353866372,1740101450969,-500.0,0.0001452,2]
[353866373,1740101450979,-1153.96,0.0001452,2]
[353866374,1740101450989,-26974.66,0.0001452,2]
[353866375,1740101450999,-940.45,0.0001452,2]
[353866376,1740101451008,-500.0,0.0001452,2]
[353866377,1740101451017,-500.0,0.0001452,2]
[353866378,1740101451027,-576.13,0.0001452,2]
[353866379,1740101451036,-1030.85,0.0001452,2]
[353866380,1740101451045,-1816.64,0.0001452,2]
[353866381,1740101451055,-500.0,0.0001452,2]
[353866382,1740101451064,-1105.71,0.0001452,2]
[353866383,1740101451073,-596.11567574,0.0001452,2]
[353866384,1740101451084,-2436.74,0.0001452,2]
[353866385,1740101451094,-909.18,0.0001452,2]
[353866386,1740101451103,-670.52,0.0001452,2]
[353866387,1740101451113,-4808.21,0.0001452,2]
[353866388,1740101451123,-500.0,0.0001452,2]
[353866389,1740101451133,-500.0,0.0001452,2]
[353866390,1740101451144,-2611.25,0.0001452,2]
[353866391,1740101451153,-500.0,0.0001452,2]
[353866392,1740101451164,-1451.23,0.0001452,2]
[353866393,1740101451173,-500.0,0.0001452,2]
[353866394,1740101451182,-500.0,0.0001452,2]
[353866395,1740101451192,-973.24,0.0001452,2]
[353866396,1740101451201,-822.5,0.0001452,2]
[353866397,1740101451211,-1573.39,0.0001452,2]
[353866398,1740101451221,-2936.2,0.0001452,2]
[353866399,1740101451231,-648.94,0.0001452,2]
[353866400,1740101451242,-1582.51,0.0001452,2]
[353866401,1740101451251,-500.0,0.0001452,2]
[353866402,1740101451260,-1821.05,0.0001452,2]
[353866403,1740101451270,-500.0,0.0001452,2]
[353866404,1740101451279,-500.0,0.0001452,2]
[353866405,1740101451288,-1944.03,0.0001452,2]
[353866406,1740101451298,-573.26,0.0001452,2]
[353866407,1740101451307,-500.0,0.0001452,2]
[353866408,1740101451317,-501.70011876,0.0001452,2]
[353866409,1740101451327,-500.0,0.0001452,2]
[353866410,1740101451336,-1419.81,0.0001452,2]
[353866411,1740101451346,-500.0,0.0001452,2]
[353866412,1740101451356,-14118.77,0.0001452,2]
[353866413,1740101451365,-500.0,0.0001452,2]
[353866414,1740101451374,-697.58,0.0001452,2]
[353866415,1740101451384,-338.66649462,0.0001452,2]
[353866416,1740101451394,-500.0,0.0001452,2]
[353866417,1740101451404,-500.0,0.0001452,2]
[353866418,1740101451414,-500.0,0.0001452,2]
[353866419,1740101451423,-4476.95,0.0001452,2]
[353866420,1740101451433,-1855.42,0.0001452,2]
[353866421,1740101451442,-500.0,0.0001452,2]
[353866422,1740101451452,-1561.66,0.0001452,2]
[353866423,1740101451461,-500.0,0.0001452,2]
[353866424,1740101451471,-1412.3,0.0001452,2]
[353866425,1740101451480,-5338.73,0.0001452,2]
[353866426,1740101451489,-2773.95,0.0001452,2]
[353866427,1740101451499,-818.79,0.0001452,2]
[353866428,1740101451508,-2229.92,0.0001452,2]
[353866429,1740101451518,-500.0,0.0001452,2]
[353866430,1740101451527,-151.0,0.000146,2]
[353866431,1740101451536,-207.57439686,0.00014602,2]
[353866432,1740101451545,-500.0,0.00014602,2]
[353866433,1740101451555,-500.0,0.00014602,2]
[353866434,1740101451564,-532.73,0.00014602,2]
[353866435,1740101451573,-729.49,0.00014602,2]
[353866436,1740101451583,-500.0,0.00014602,2]
[353866437,1740101451592,-696.74,0.00014602,2]
[353866438,1740101451602,-500.0,0.00014602,2]
[353866439,1740101451612,-500.0,0.00014602,2]
[353866440,1740101451621,-518.52,0.00014602,2]
[353866441,1740101451631,-500.0,0.00014602,2]
[353866442,1740101451642,-500.0,0.00014602,2]
[353866443,1740101451652,-500.0,0.00014602,2]
[353866444,1740101451661,-500.0,0.00014602,2]
[353866445,1740101451670,-500.0,0.00014602,2]
[353866446,1740101451679,-500.0,0.00014602,2]
[353866447,1740101451688,-500.0,0.00014602,2]
[353866448,1740101451698,-844.81,0.00014602,2]
[353866449,1740101451707,-500.0,0.00014602,2]
[353866450,1740101451718,-669.95,0.00014602,2]
[353866451,1740101451730,-500.0,0.00014602,2]
[353866452,1740101451741,-581.18,0.00014602,2]
[353866453,1740101451750,-500.0,0.00014602,2]
[353866454,1740101451759,-500.0,0.00014602,2]
[353866455,1740101451769,-480.69922957,0.00014602,2]
[353866456,1740101451778,-500.0,0.00014602,2]
[353866457,1740101451787,-500.0,0.00014602,2]
[353866458,1740101451797,-604.66,0.00014602,2]
[353866459,1740101451808,-500.0,0.00014602,2]
[353866460,1740101451818,-619.71900022,0.00014602,2]
[353866461,1740101451828,-500.0,0.00014602,2]
[353866462,1740101451837,-861.01,0.00014602,2]
[353866463,1740101451849,-351.69876726,0.00014602,2]
[353866464,1740101451858,-1153.96,0.00014602,2]
[353866465,1740101451868,-26974.66,0.00014602,2]
[353866466,1740101451877,-940.45,0.00014602,2]
[353866467,1740101451886,-500.0,0.00014602,2]
[353866468,1740101451897,-500.0,0.00014602,2]
[353866469,1740101451906,-576.13,0.00014602,2]
[353866470,1740101451916,-1030.85,0.00014602,2]
[353866471,1740101451926,-1816.64,0.00014602,2]
[353866472,1740101451935,-500.0,0.00014602,2]
[353866473,1740101451944,-1105.71,0.00014602,2]
[353866474,1740101451953,-2436.74,0.00014602,2]
[353866475,1740101451963,-909.18,0.00014602,2]
[353866476,1740101451972,-670.52,0.00014602,2]
[353866477,1740101451981,-4808.21,0.00014602,2]
[353866478,1740101451991,-500.0,0.00014602,2]
[353866479,1740101452000,-500.0,0.00014602,2]
[353866480,1740101452010,-2611.25,0.00014602,2]
[353866481,1740101452019,-500.0,0.00014602,2]
[353866482,1740101452028,-1451.23,0.00014602,2]
[353866483,1740101452038,-500.0,0.00014602,2]
[353866484,1740101452047,-500.0,0.00014602,2]
[353866485,1740101452057,-973.24,0.00014602,2]
[353866486,1740101452066,-822.5,0.00014602,2]
[353866487,1740101452075,-1573.39,0.00014602,2]
[353866488,1740101452087,-2936.2,0.00014602,2]
[353866489,1740101452096,-648.94,0.00014602,2]
[353866490,1740101452105,-1582.51,0.00014602,2]
[353866491,1740101452115,-500.0,0.00014602,2]
[353866492,1740101452125,-1821.05,0.00014602,2]
[353866493,1740101452135,-500.0,0.00014602,2]
[353866494,1740101452146,-500.0,0.00014602,2]
[353866495,1740101452155,-1944.03,0.00014602,2]
[353866496,1740101452165,-573.26,0.00014602,2]
[353866497,1740101452174,-500.0,0.00014602,2]
[353866498,1740101452184,-500.0,0.00014602,2]
[353866499,1740101452194,-1419.81,0.00014602,2]
[353866500,1740101452203,-500.0,0.00014602,2]
[353866501,1740101452213,-14118.77,0.00014602,2]
[353866502,1740101452222,-500.0,0.00014602,2]
[353866503,1740101452232,-697.58,0.00014602,2]
[353866504,1740101452241,-500.0,0.00014602,2]
[353866505,1740101452251,-500.0,0.00014602,2]
[353866506,1740101452260,-500.0,0.00014602,2]
[353866507,1740101452269,-4476.95,0.00014602,2]
[353866508,1740101452279,-1855.42,0.00014602,2]
[353866509,1740101452289,-500.0,0.00014602,2]
[353866510,1740101452298,-1561.66,0.00014602,2]
[353866511,1740101452307,-500.0,0.00014602,2]
[353866512,1740101452317,-1412.3,0.00014602,2]
[353866513,1740101452326,-5338.73,0.00014602,2]
[353866514,1740101452336,-2773.95,0.00014602,2]
[353866515,1740101452346,-818.79,0.00014602,2]
[353866516,1740101452355,-2229.92,0.00014602,2]
[353866517,1740101452365,-500.0,0.00014602,2]
[353866518,1740101452374,-500.0,0.00014616,2]
[353866519,1740101452384,-605.42324317,0.0001465,2]
[353866520,1740101452394,-168.26106217,0.00014658,2]
[353866521,1740101452404,-500.0,0.00014673,2]
[353866522,1740101452416,-500.0,0.00014684,2]
[353866523,1740101452426,-500.0,0.00014684,2]
[353866524,1740101452435,-532.73,0.00014684,2]
[353866525,1740101452445,-729.49,0.00014684,2]
[353866526,1740101452454,-500.0,0.00014684,2]
[353866527,1740101452463,-696.74,0.00014684,2]
[353866528,1740101452473,-500.0,0.00014684,2]
[353866529,1740101452482,-500.0,0.00014684,2]
[353866530,1740101452492,-518.52,0.00014684,2]
[353866531,1740101452501,-500.0,0.00014684,2]
[353866532,1740101452511,-500.0,0.00014684,2]
[353866533,1740101452519,-500.0,0.00014684,2]
[353866534,1740101452528,-500.0,0.00014684,2]
[353866535,1740101452538,-500.0,0.00014684,2]
[353866536,1740101452547,-500.0,0.00014684,2]
[353866537,1740101452556,-844.81,0.00014684,2]
[353866538,1740101452565,-669.95,0.00014684,2]
[353866539,1740101452574,-500.0,0.00014684,2]
[353866540,1740101452584,-581.18,0.00014684,2]
[353866541,1740101452593,-500.0,0.00014684,2]
[353866542,1740101452603,-232.94,0.00014684,2]
[353866543,1740101452613,-500.0,0.00014684,2]
[353866544,1740101452624,-500.0,0.00014684,2]
[353866545,1740101452633,-604.66,0.00014684,2]
[353866546,1740101452644,-541.58802405,0.00014684,2]
[353866547,1740101452653,-500.0,0.00014684,2]
[353866548,1740101452662,-861.01,0.00014684,2]
[353866549,1740101452672,-1153.96,0.00014684,2]
[353866550,1740101452682,-26974.66,0.00014684,2]
[353866551,1740101452691,-940.45,0.00014684,2]
[353866552,1740101452701,-500.0,0.00014684,2]
[353866553,1740101452711,-500.0,0.00014684,2]
[353866554,1740101452720,-576.13,0.00014684,2]
[353866555,1740101452730,-1030.85,0.00014684,2]
[353866556,1740101452740,-1816.64,0.00014684,2]
[353866557,1740101452750,-500.0,0.00014684,2]
[353866558,1740101452760,-1105.71,0.00014684,2]
[353866559,1740101452848,-2436.74,0.00014684,2]
[353866560,1740101452867,-909.18,0.00014684,2]
[353866561,1740101452877,-670.52,0.00014684,2]
[353866562,1740101452887,-4808.21,0.00014684,2]
[353866563,1740101452898,-500.0,0.00014684,2]
[353866564,1740101452908,-2611.25,0.00014684,2]
[353866565,1740101452918,-500.0,0.00014684,2]
[353866566,1740101452928,-1451.23,0.00014684,2]
[353866567,1740101452938,-500.0,0.00014684,2]
[353866568,1740101452948,-500.0,0.00014684,2]
[353866569,1740101452958,-973.24,0.00014684,2]
[353866570,1740101452967,-822.5,0.00014684,2]
[353866571,1740101452977,-1573.39,0.00014684,2]
[353866572,1740101452987,-2936.2,0.00014684,2]
[353866573,1740101452999,-648.94,0.00014684,2]
[353866574,1740101453009,-1582.51,0.00014684,2]
[353866575,1740101453020,-500.0,0.00014684,2]
[353866576,1740101453030,-1821.05,0.00014684,2]
[353866577,1740101453040,-500.0,0.00014684,2]
[353866578,1740101453050,-500.0,0.00014684,2]
[353866579,1740101453060,-1944.03,0.00014684,2]
[353866580,1740101453070,-573.26,0.00014684,2]
[353866581,1740101453080,-500.0,0.00014684,2]
[353866582,1740101453094,-500.0,0.00014684,2]
[353866583,1740101453105,-1419.81,0.00014684,2]
[353866584,1740101453115,-14118.77,0.00014684,2]
[353866585,1740101453126,-500.0,0.00014684,2]
[353866586,1740101453136,-697.58,0.00014684,2]
[353866587,1740101453147,-500.0,0.00014684,2]
[353866588,1740101453156,-500.0,0.00014684,2]
[353866589,1740101453166,-500.0,0.00014684,2]
[353866590,1740101453176,-4476.95,0.00014684,2]
[353866591,1740101453186,-1855.42,0.00014684,2]
[353866592,1740101453196,-500.0,0.00014684,2]
[353866593,1740101453206,-1561.66,0.00014684,2]
[353866594,1740101453216,-500.0,0.00014684,2]
[353866595,1740101453226,-1412.3,0.00014684,2]
[353866596,1740101453236,-5338.73,0.00014684,2]
[353866597,1740101453245,-2773.95,0.00014684,2]
[353866598,1740101453255,-818.79,0.00014684,2]
[353866599,1740101453265,-2229.92,0.00014684,2]
[353866600,1740101453274,-509.32681475,0.00014684,2]
[353866601,1740101453286,-151.0,0.000147,2]
[353866602,1740101453296,-465.00518331,0.00014708,2]
[353866603,1740101453306,-500.55898504,0.00014721,2]
[353866604,1740101453317,-500.0,0.00014721,2]
[353866605,1740101453326,-1000.0,0.00014721,2]
[353866606,1740101453336,-1000.0,0.00014721,2]
[353866607,1740101453346,-1000.0,0.00014721,2]
[353866608,1740101453355,-1000.0,0.00014721,2]
[353866609,1740101453365,-500.0,0.00014767,2]
[353866610,1740101453375,-500.0,0.00014767,2]
[353866611,1740101453384,-532.73,0.00014767,2]
[353866612,1740101453394,-729.49,0.00014767,2]
[353866613,1740101453404,-500.0,0.00014767,2]
[353866614,1740101453415,-696.74,0.00014767,2]
[353866615,1740101453424,-500.0,0.00014767,2]
[353866616,1740101453434,-500.0,0.00014767,2]
[353866617,1740101453443,-518.52,0.00014767,2]
[353866618,1740101453453,-500.0,0.00014767,2]
[353866619,1740101453463,-500.0,0.00014767,2]
[353866620,1740101453472,-500.0,0.00014767,2]
[353866621,1740101453482,-500.0,0.00014767,2]
[353866622,1740101453490,-844.81,0.00014767,2]
[353866623,1740101453500,-669.95,0.00014767,2]
[353866624,1740101453509,-581.18,0.00014767,2]
[353866625,1740101453518,-500.0,0.00014767,2]
[353866626,1740101453527,-500.0,0.00014767,2]
[353866627,1740101453536,-604.66,0.00014767,2]
[353866628,1740101453545,-861.01,0.00014767,2]
[353866629,1740101453555,-1153.96,0.00014767,2]
[353866630,1740101453564,-26974.66,0.00014767,2]
[353866631,1740101453573,-940.45,0.00014767,2]
[353866632,1740101453583,-500.0,0.00014767,2]
[353866633,1740101453592,-500.0,0.00014767,2]
[353866634,1740101453602,-576.13,0.00014767,2]
[353866635,1740101453612,-1030.85,0.00014767,2]
[353866636,1740101453621,-1816.64,0.00014767,2]
[353866637,1740101453630,-500.0,0.00014767,2]
[353866638,1740101453641,-1105.71,0.00014767,2]
[353866639,1740101453650,-2436.74,0.00014767,2]
[353866640,1740101453659,-909.18,0.00014767,2]
[353866641,1740101453668,-670.52,0.00014767,2]
[353866642,1740101453677,-4808.21,0.00014767,2]
[353866643,1740101453686,-500.0,0.00014767,2]
[353866644,1740101453696,-2611.25,0.00014767,2]
[353866645,1740101453705,-500.0,0.00014767,2]
[353866646,1740101453714,-1451.23,0.00014767,2]
[353866647,1740101453724,-500.0,0.00014767,2]
[353866648,1740101453733,-500.0,0.00014767,2]
[353866649,1740101453742,-973.24,0.00014767,2]
[353866650,1740101453751,-822.5,0.00014767,2]
[353866651,1740101453761,-1573.39,0.00014767,2]
[353866652,1740101453770,-2936.2,0.00014767,2]
[353866653,1740101453780,-648.94,0.00014767,2]
[353866654,1740101453789,-1582.51,0.00014767,2]
[353866655,1740101453799,-500.0,0.00014767,2]
[353866656,1740101453808,-1821.05,0.00014767,2]
[353866657,1740101453818,-500.0,0.00014767,2]
[353866658,1740101453827,-500.0,0.00014767,2]
[353866659,1740101453837,-1944.03,0.00014767,2]
[353866660,1740101453847,-573.26,0.00014767,2]
[353866661,1740101453857,-500.0,0.00014767,2]
[353866662,1740101453867,-500.0,0.00014767,2]
[353866663,1740101453876,-1419.81,0.00014767,2]
[353866664,1740101453886,-14118.77,0.00014767,2]
[353866665,1740101453898,-500.0,0.00014767,2]
[353866666,1740101453907,-697.58,0.00014767,2]
[353866667,1740101453917,-367.14606317,0.00014767,2]
[353866668,1740101453926,-500.0,0.00014767,2]
[353866669,1740101453935,-500.0,0.00014767,2]
[353866670,1740101453945,-4476.95,0.00014767,2]
[353866671,1740101453954,-1855.42,0.00014767,2]
[353866672,1740101453964,-500.0,0.00014767,2]
[353866673,1740101453974,-1561.66,0.00014767,2]
[353866674,1740101453983,-500.0,0.00014767,2]
[353866675,1740101453993,-1412.3,0.00014767,2]
[353866676,1740101454002,-5338.73,0.00014767,2]
[353866677,1740101454011,-2773.95,0.00014767,2]
[353866678,1740101454021,-818.79,0.00014767,2]
[353866679,1740101454030,-2229.92,0.00014767,2]
[353866680,1740101454039,-306.0,0.0001479,2]
[353866681,1740101454049,-151.0,0.000148,2]
[353866682,1740101454058,-500.0,0.00014849,2]
[353866683,1740101454067,-500.0,0.00014849,2]
[353866684,1740101454077,-532.73,0.00014849,2]
[353866685,1740101454088,-729.49,0.00014849,2]
[353866686,1740101454098,-500.0,0.00014849,2]
[353866687,1740101454107,-696.74,0.00014849,2]
[353866688,1740101454117,-500.0,0.00014849,2]
[353866689,1740101454127,-500.0,0.00014849,2]
[353866690,1740101454136,-518.52,0.00014849,2]
[353866691,1740101454147,-500.0,0.00014849,2]
[353866692,1740101454156,-500.0,0.00014849,2]
[353866693,1740101454167,-500.0,0.00014849,2]
[353866694,1740101454176,-500.0,0.00014849,2]
[353866695,1740101454186,-844.81,0.00014849,2]
[353866696,1740101454196,-669.95,0.00014849,2]
[353866697,1740101454205,-581.18,0.00014849,2]
[353866698,1740101454215,-500.0,0.00014849,2]
[353866699,1740101454225,-500.0,0.00014849,2]
[353866700,1740101454234,-604.66,0.00014849,2]
[353866701,1740101454244,-861.01,0.00014849,2]
[353866702,1740101454254,-1153.96,0.00014849,2]
[353866703,1740101454264,-26974.66,0.00014849,2]
[353866704,1740101454274,-940.45,0.00014849,2]
[353866705,1740101454294,-500.0,0.00014849,2]
[353866706,1740101454305,-500.0,0.00014849,2]
[353866707,1740101454315,-576.13,0.00014849,2]
[353866708,1740101454325,-1030.85,0.00014849,2]
[353866709,1740101454334,-1816.64,0.00014849,2]
[353866710,1740101454344,-500.0,0.00014849,2]
[353866711,1740101454353,-1105.71,0.00014849,2]
[353866712,1740101454363,-2436.74,0.00014849,2]
[353866713,1740101454373,-909.18,0.00014849,2]
[353866714,1740101454382,-670.52,0.00014849,2]
[353866715,1740101454392,-4808.21,0.00014849,2]
[353866716,1740101454401,-500.0,0.00014849,2]
[353866717,1740101454412,-2611.25,0.00014849,2]
[353866718,1740101454422,-436.28588457,0.00014849,2]
[353866719,1740101454431,-1451.23,0.00014849,2]
[353866720,1740101454441,-628.2172145,0.00014849,2]
[353866721,1740101454450,-500.0,0.00014849,2]
[353866722,1740101454460,-973.24,0.00014849,2]
[353866723,1740101454470,-822.5,0.00014849,2]
[353866724,1740101454481,-1573.39,0.00014849,2]
[353866725,1740101454491,-2936.2,0.00014849,2]
[353866726,1740101454501,-648.94,0.00014849,2]
[353866727,1740101454510,-1582.51,0.00014849,2]
[353866728,1740101454520,-500.0,0.00014849,2]
[353866729,1740101454530,-1821.05,0.00014849,2]
[353866730,1740101454540,-500.0,0.00014849,2]
[353866731,1740101454551,-1944.03,0.00014849,2]
[353866732,1740101454560,-573.26,0.00014849,2]
[353866733,1740101454570,-500.0,0.00014849,2]
[353866734,1740101454580,-500.0,0.00014849,2]
[353866735,1740101454589,-1419.81,0.00014849,2]
[353866736,1740101454599,-14118.77,0.00014849,2]
[353866737,1740101454609,-697.58,0.00014849,2]
[353866738,1740101454619,-500.0,0.00014849,2]
[353866739,1740101454628,-4476.95,0.00014849,2]
[353866740,1740101454638,-1855.42,0.00014849,2]
[353866741,1740101454649,-500.0,0.00014849,2]
[353866742,1740101454659,-1561.66,0.00014849,2]
[353866743,1740101454669,-500.0,0.00014849,2]
[353866744,1740101454678,-1412.3,0.00014849,2]
[353866745,1740101454688,-5338.73,0.00014849,2]
[353866746,1740101454698,-2773.95,0.00014849,2]
[353866747,1740101454708,-818.79,0.00014849,2]
[353866748,1740101454718,-2229.92,0.00014849,2]
[353866749,1740101454727,-538.0,0.00014869,2]
[353866750,1740101454737,-1969.0,0.00014869,2]
[353866751,1740101454747,-2287.0,0.00014869,2]
[353866752,1740101454756,-150.305,0.00014869,2]
[353866753,1740101454766,-500.16756516,0.00014873,2]
[353866754,1740101454776,-151.0,0.00014886,2]
[353866755,1740101454786,-179.469275,0.00014886,2]
[353866756,1740101454795,-179.469275,0.00014886,2]
[353866757,1740101454805,-151.592091,0.00014886,2]
[353866758,1740101454816,-151.0,0.00014886,2]
[353866759,1740101454826,-152.0,0.000149,2]
[353866760,1740101454835,-151.0,0.000149,2]
[353866761,1740101454844,-152.137845,0.000149,2]
[353866762,1740101454855,-151.0,0.000149,2]
[353866763,1740101454865,-214825.83207575,0.000149,2]
[353866764,1740101455126,-7473.38093042,0.000149,2]
[353866765,1740101455225,-500.0,0.00014191,2]
[353866766,1740101455237,-5097.36,0.00014191,2]
[353866767,1740101455248,-5597.36,0.00014273,2]
[353866768,1740101455258,-5597.36,0.00014356,2]
[353866769,1740101455268,-5597.36,0.00014438,2]
[353866770,1740101455278,-5597.36,0.0001452,2]
[353866771,1740101455288,-5597.36,0.00014602,2]
[353866772,1740101455297,-5597.36,0.00014684,2]
[353866773,1740101455307,-5597.36,0.00014767,2]
[353866774,1740101455317,-5597.36,0.00014849,2]
[353866775,1740101455326,-358084.05842183,0.000149,2]
[353866776,1740101455336,-151.0,0.000149,2]
[353866777,1740101455346,-151.0,0.000149,2]
[353866778,1740101455355,-151.0,0.000149,2]
[353866779,1740101455364,-151.0,0.000149,2]
[353866780,1740101455375,-179.469275,0.000149,2]
[353866781,1740101455384,-179.469275,0.000149,2]
[353866782,1740101455394,-203.04715,0.000149,2]
[353866783,1740101455404,-500.0,0.00014931,2]
[353866784,1740101455415,-500.0,0.00014931,2]
[353866785,1740101455425,-532.73,0.00014931,2]
[353866786,1740101455435,-729.49,0.00014931,2]
[353866787,1740101455445,-500.0,0.00014931,2]
[353866788,1740101455455,-696.74,0.00014931,2]
[353866789,1740101455465,-500.0,0.00014931,2]
[353866790,1740101455475,-500.0,0.00014931,2]
[353866791,1740101455484,-518.52,0.00014931,2]
[353866792,1740101455494,-500.0,0.00014931,2]
[353866793,1740101455503,-500.0,0.00014931,2]
[353866794,1740101455512,-500.0,0.00014931,2]
[353866795,1740101455522,-500.0,0.00014931,2]
[353866796,1740101455531,-844.81,0.00014931,2]
[353866797,1740101455540,-669.95,0.00014931,2]
[353866798,1740101455549,-581.18,0.00014931,2]
[353866799,1740101455558,-500.0,0.00014931,2]
[353866800,1740101455568,-396.47997318,0.00014931,2]
[353866801,1740101455577,-604.66,0.00014931,2]
[353866802,1740101455587,-861.01,0.00014931,2]
[353866803,1740101455596,-1153.96,0.00014931,2]
[353866804,1740101455606,-26974.66,0.00014931,2]
[353866805,1740101455616,-940.45,0.00014931,2]
[353866806,1740101455626,-500.0,0.00014931,2]
[353866807,1740101455636,-576.13,0.00014931,2]
[353866808,1740101455646,-1030.85,0.00014931,2]
[353866809,1740101455658,-1816.64,0.00014931,2]
[353866810,1740101455668,-500.0,0.00014931,2]
[353866811,1740101455678,-1105.71,0.00014931,2]
[353866812,1740101455687,-2436.74,0.00014931,2]
[353866813,1740101455698,-909.18,0.00014931,2]
[353866814,1740101455708,-670.52,0.00014931,2]
[353866815,1740101455718,-4808.21,0.00014931,2]
[353866816,1740101455728,-500.0,0.00014931,2]
[353866817,1740101455737,-2611.25,0.00014931,2]
[353866818,1740101455747,-1451.23,0.00014931,2]
[353866819,1740101455756,-500.0,0.00014931,2]
[353866820,1740101455765,-973.24,0.00014931,2]